[Event "9. Korbacher Open 2017"]
[Site "Korbach"]
[Date "2017.10.20"]
[Round "2"]
[White "Hoekstra, Peter"]
[Black "Held, Martin"]
[Result "1/2-1/2"]
[ECO "C55"]
[WhiteElo "2074"]
[BlackElo "1821"]
[Annotator "NA RC"]
[PlyCount "81"]
[EventDate "2017.??.??"]
[EventType "swiss"]
[EventCountry "GER"]
[SourceTitle "playchess.com"]
[Source "ChessBase"]
[SourceQuality "1"]
[TimeControl "40/5400+30:1800+30"]

{[%evp 8,82,0,-26,-7,-6,0,-33,1,32767,2,0,0,0,0,15,18,-45,-16,-31,-27,-35,11,-116,-99,-128,-114,-108,-105,-125,-141,-109,-126,-130,-93,-95,32767,-112,32767,-131,-130,-141,0,-162,0,32767,32767,-1187,-1367,-1240,-129,-245,-186,-59,0,0,0,0,0,0,0,0,0,0,0,0,0,95,0,0,-82,-11,0,-39,0,0,-108]} 1. e4 {[%emt 0:01:01]} e5 {[%emt 0:00:15]} 2. Nf3 {[%emt 0:00:05]} Nc6 {[%emt 0:00:06]} 3. d4 {[%emt 0:00:05]} exd4 {[%emt 0:00:11]} 4. Bc4 {[%emt 0:00:08]} Nf6 {[%emt 0:00:38]} 5. e5 {[%emt 0:00:09]} d5 {[%emt 0:00:19]} 6. Bb5 {[%emt 0:00:06]} Ne4 {[%emt 0:00:09]} 7. Nxd4 {[%emt 0:00:06]} Bc5 {[%emt 0:00:15]} 8. Be3 {[%emt 0:00:24]} O-O {[%emt 0:00:26]} 9. Nxc6 {[%emt 0:01:31]} bxc6 {[%emt 0:03:16]} 10. Bxc5 {[%emt 0:00:07]} Nxc5 {[%emt 0:00:24]} 11. Bxc6 {[%emt 0:00:05]} Rb8 {[%emt 0:00:45] LiveBook: 26 Games C56: Two Knights: 4 d4 exd4 5 0-0 Nxe4} 12. Nc3 {[%emt 0:04:43]} (12. Qxd5 $14 Qe7 13. O-O) (12. O-O Rxb2 13. Qxd5 Qxd5 14. Bxd5 Rxc2 15. Na3 Re2 16. Rac1 Nd3 17. Rxc7 Be6 18. Bb3 a5 19. Ra7 Bxb3 20. axb3 Rxe5 {1-0 (31) Nakamura,H (2798)-Onischuk,A (2665) Saint Louis 2015}) 12... d4 {[%emt 0:02:41]} 13. Nd5 {[%emt 0:08:26]} Ne6 {[%emt 0:02:09]} 14. O-O {[%emt 0:01:29]} Ba6 $146 {[%emt 0:10:00]} ({Predecessor:} 14... Bb7 15. Nb4 Qg5 16. Bxb7 Rxb7 17. Nd3 Qe7 18. f4 Nc5 19. b3 {1-0 (29) Tkachuk,S (2218)-Schiffers,S (2008) Duesseldorf 2011}) 15. Re1 {[%emt 0:04:45]} (15. b3 $1 $11 {remains equal.}) 15... Bc4 {[%emt 0:02:26]} ({But not} 15... Rxb2 $6 16. Qc1 $11) 16. Qf3 {[%emt 0:04:23] [#]} Ng5 $1 {[%emt 0:09:12]} 17. Qf5 {[%emt 0:05:58]} Bxd5 {[%emt 0:03:19]} 18. Bxd5 {[%emt 0:00:05]} Qxd5 {[%emt 0:00:58]} 19. Qxg5 {[%emt 0:00:05]} Rxb2 {[%emt 0:00:26]} 20. Qd2 {[%emt 0:08:00]} Rfb8 {[%emt 0:08:23]} 21. a4 {[%emt 0:00:56]} Qc4 {[%emt 0:14:09]} 22. Rec1 {[%emt 0:03:44]} c5 {[%emt 0:05:14]} 23. f4 {[%emt 0:01:19]} Qd5 {[%emt 0:02:34]} (23... h6 $17 24. g3 Qd5) 24. Rd1 {[%emt 0:04:45]} Qc4 {[%emt 0:01:47]} (24... h6 $17 25. Rac1 Qc4) 25. Rdc1 {[%emt 0:00:10]} Qd5 {[%emt 0:05:21]} 26. Rd1 {[%emt 0:01:22]} a5 {[%emt 0:08:04]} 27. Qxa5 $2 {[%emt 0:01:47]} (27. Rac1 $17) 27... Rxc2 {[%emt 0:00:57]} 28. Rd2 {[%emt 0:02:39]} Ra8 $2 {[%emt 0:05:25]} (28... d3 $19 29. Rad1 Ra8 30. Qxa8+ Qxa8) 29. Qxa8+ {[%emt 0:03:01]} Qxa8 {[%emt 0:00:05]} 30. Rxc2 {[%emt 0:00:04] [#]} Qa5 $2 {[%emt 0:02:31]} (30... d3 $1 $19 {[%cal Rd3c2]} 31. Rcc1 Qa5) 31. Rac1 {[%emt 0:00:12]} Qxa4 {[%emt 0:00:59]} 32. Rxc5 {[%emt 0:00:14]} g6 {[%emt 0:00:31]} 33. e6 {[%emt 0:09:58]} fxe6 {[%emt 0:02:22]} 34. Rc8+ {[%emt 0:00:14]} Kg7 {[%emt 0:03:45]} 35. R1c7+ {[%emt 0:03:58]} Kh6 {[%emt 0:00:09]} 36. Rh8 {[%emt 0:00:17]} g5 {[%emt 0:04:44]} 37. Rhxh7+ {[%emt 0:06:18]} Kg6 {[%emt 0:00:06]} 38. Rcf7 {[%emt 0:02:04]} Qd1+ {[%emt 0:01:53]} (38... Qa1+ $11 39. Kf2 Qb2+ 40. Kf3 Qc3+ 41. Kg4 d3) 39. Kf2 {[%emt 0:00:06]} Qd2+ {[%emt 0:00:21]} 40. Kf1 {[%emt 0:00:07]} Qd3+ (40... gxf4 $5 41. Rhg7+ $8 Kh6 $11) 41. Kf2 1/2-1/2

[Event "9. Korbacher Open 2017"]
[Site "Korbach"]
[Date "2017.10.20"]
[Round "2"]
[White "Rutz, Matthias"]
[Black "Forgach, Andreas"]
[Result "1-0"]
[ECO "A45"]
[WhiteElo "2046"]
[BlackElo "1851"]
[Annotator "NA RC"]
[PlyCount "83"]
[EventDate "2017.??.??"]
[EventType "swiss"]
[EventCountry "GER"]
[SourceTitle "playchess.com"]
[Source "ChessBase"]
[SourceQuality "1"]
[TimeControl "40/5400+30:1800+30"]

{[%evp 9,83,-7,0,2,-3,-7,6,0,28,11,0,11,0,4,16,-18,-19,-22,-14,-20,-14,32767,32767,32767,0,0,5,9,39,39,72,51,174,0,28,10,101,90,82,62,104,34,98,78,120,105,132,98,131,117,124,98,102,102,125,127,132,127,254,283,291,289,297,301,389,399,491,443,499,479,528,462,437,506,496,546]} 1. d4 {[%emt 0:00:00]} Nf6 {[%emt 0:00:42]} 2. c3 {[%emt 0:00:27]} g6 {[%emt 0:01:32]} 3. Nf3 {[%emt 0:00:09]} Bg7 {[%emt 0:00:24]} 4. Bf4 {[%emt 0:00:36]} d6 {[%emt 0:01:18]} 5. h3 {[%emt 0:00:47]} Nbd7 {[%emt 0:03:36]} 6. e3 {[%emt 0:01:57]} O-O {[%emt 0:01:07]} 7. Be2 {[%emt 0:00:41]} Qe8 {[%emt 0:04:39]} 8. O-O {[%emt 0:01:11]} e5 {[%emt 0:00:58]} 9. Bh2 {[%emt 0:00:12] LiveBook: 43 Games} b6 {[%emt 0:09:23] A48: 1 d4 Nf6 2 Nf3 g6: Torre, London and Colle Systems} (9... Qe7 10. Na3 e4 11. Nd2 Re8 12. Nac4 Nf8 13. a4 h5 14. f4 Nd5 15. g4 hxg4 16. hxg4 f5 17. g5 Be6 {0-1 (30) Sattarov,B (2389)-Atabayev,S (2436) Tashkent 2017}) 10. a4 {[%emt 0:04:03]} a5 {[%emt 0:11:15]} 11. Na3 {[%emt 0:03:02]} Bb7 {[%emt 0:01:03]} 12. Nc4 {[%emt 0:10:25]} e4 {[%emt 0:05:49]} 13. Nfd2 {[%emt 0:03:36]} Nd5 {[%emt 0:02:26]} 14. Na3 $146 {[%emt 0:03:43]} ({Predecessor:} 14. Kh1 f5 15. f4 exf3 16. Bxf3 N7f6 17. Bxd6 cxd6 18. Nxd6 {1-0 (31) Enkhtuul,A (2230)-Gazik,I (2311) Banska Stiavnica 2016}) 14... f5 {[%emt 0:04:36]} 15. Re1 {[%emt 0:11:38]} Kh8 {[%emt 0:01:54]} 16. Bf1 {[%emt 0:04:36]} g5 {[%emt 0:16:37]} 17. Nb5 {[%emt 0:04:24]} Bc6 {[%emt 0:07:29]} 18. Rc1 {[%emt 0:11:12]} Bxb5 {[%emt 0:03:58]} 19. Bxb5 {[%emt 0:01:16]} Rd8 {[%emt 0:04:17]} 20. Qb3 {[%emt 0:09:10]} N5f6 {[%emt 0:03:34]} ({Black should play} 20... Qf7 $14) 21. Qd1 $2 {[%emt 0:05:42]} (21. Qc4 $18) 21... Qg6 {[%emt 0:01:36]} 22. b4 {[%emt 0:04:56]} Nb8 {[%emt 0:01:32]} (22... g4 $11) 23. bxa5 {[%emt 0:00:48]} bxa5 {[%emt 0:00:02]} 24. Nb3 {[%emt 0:02:00]} g4 {[%emt 0:04:19]} 25. h4 {[%emt 0:03:48]} c6 {[%emt 0:02:25]} 26. Be2 {[%emt 0:00:46]} Qh5 {[%emt 0:02:04]} 27. Bg3 {[%emt 0:01:29]} Bh6 {[%emt 0:00:51]} 28. c4 {[%emt 0:03:12]} Rg8 {[%emt 0:02:48]} ({Black should try} 28... Qf7 $14) 29. Qd2 {[%emt 0:00:28]} Qg6 {[%emt 0:00:31]} 30. Nxa5 {[%emt 0:00:38]} Nh5 {[%emt 0:00:20]} 31. Rb1 {[%emt 0:01:40]} Qf6 {[%emt 0:01:05]} 32. d5 {[%emt 0:01:59]} f4 {[%emt 0:00:54]} 33. exf4 {[%emt 0:00:25]} Nxf4 {[%emt 0:00:44]} (33... Bxf4 $16 {keeps fighting.} 34. Bxf4 Nxf4) 34. Qb2 {[%emt 0:00:38]} Qxb2 {[%emt 0:00:28]} 35. Rxb2 {[%emt 0:00:11]} cxd5 {[%emt 0:00:15]} 36. cxd5 {[%emt 0:00:17]} Nxe2+ {[%emt 0:00:18]} 37. Rexe2 {[%emt 0:00:53]} Na6 {[%emt 0:00:59]} 38. Nb7 {[%emt 0:00:56]} Rd7 {[%emt 0:00:23]} 39. Nxd6 {[%emt 0:01:32]} Nc5 {[%emt 0:00:50]} 40. Nf5 {[%emt 0:02:59]} Bg7 {[%emt 0:01:02]} 41. Nxg7 Kxg7 42. d6 $18 1-0

[Event "9. Korbacher Open 2017"]
[Site "Korbach"]
[Date "2017.10.20"]
[Round "2"]
[White "Dijkhuis, Oele"]
[Black "Timar-Geng, Zoltan"]
[Result "1-0"]
[ECO "C54"]
[WhiteElo "2035"]
[BlackElo "1859"]
[Annotator "NA RC"]
[PlyCount "95"]
[EventDate "2017.??.??"]
[EventType "swiss"]
[EventCountry "GER"]
[SourceTitle "playchess.com"]
[Source "ChessBase"]
[SourceQuality "1"]
[TimeControl "40/5400+30:1800+30"]

{[%evp 8,95,17,3,0,-6,10,0,0,-10,30,20,37,35,48,28,35,32,31,27,20,33,29,27,39,36,35,26,47,45,45,39,72,42,61,70,62,61,93,72,105,122,32767,32767,32767,32767,156,169,167,171,179,170,181,197,177,189,165,147,139,129,204,250,383,225,362,440,461,401,431,452,463,495,562,523,558,495,690,812,1423,2156,29989,29990,29992,29993,29994,29995,29995,29996,29996,29997]} 1. e4 {[%emt 0:00:00]} e5 {[%emt 0:00:10]} 2. Nf3 {[%emt 0:00:00]} Nc6 {[%emt 0:00:06]} 3. Bc4 {[%emt 0:00:00]} Bc5 {[%emt 0:00:07]} 4. c3 {[%emt 0:00:02]} Nf6 {[%emt 0:00:20]} 5. d4 {[%emt 0:00:33]} exd4 {[%emt 0:00:14]} 6. e5 {[%emt 0:00:06]} d5 {[%emt 0:02:21]} 7. Bb5 {[%emt 0:00:09]} Ne4 {[%emt 0:02:31]} 8. cxd4 {[%emt 0:00:08]} Bb4+ {[%emt 0:02:06]} 9. Bd2 {[%emt 0:00:56]} Nxd2 {[%emt 0:09:21]} 10. Nbxd2 {[%emt 0:00:13]} Bd7 {[%emt 0:01:46] C54: Giuoco Piano: 4 c3 Nf6, main lines with 5 d4 and 5 d3} 11. O-O {[%emt 0:00:54]} O-O {[%emt 0:00:48] LiveBook: 6 Games} 12. a3 {[%emt 0:02:14]} Ba5 {[%emt 0:00:55]} 13. Nb3 {[%emt 0:02:48]} Bb6 {[%emt 0:00:34] [#]} 14. Bxc6 $146 {[%emt 0:01:30]} ({Predecessor:} 14. Re1 Ne7 15. Bd3 Ng6 16. Qd2 Bg4 17. Ng5 h6 18. Nxf7 Kxf7 {1-0 (50) Popov,I (2541)-Nyback,T (2644) Budva 2009}) 14... Bxc6 {[%emt 0:03:31]} 15. Nc5 {[%emt 0:01:55]} Re8 {[%emt 0:09:43]} 16. Re1 {[%emt 0:04:09]} Rb8 {[%emt 0:02:17]} 17. Qc2 {[%emt 0:04:49]} h6 {[%emt 0:01:58]} 18. e6 {[%emt 0:04:22]} fxe6 {[%emt 0:00:28]} 19. Ne5 {[%emt 0:00:17]} Bxc5 {[%emt 0:04:05]} 20. Qxc5 {[%emt 0:03:56]} Qe7 {[%emt 0:00:28]} 21. Rac1 {[%emt 0:01:37]} Qxc5 {[%emt 0:02:36]} 22. Rxc5 {[%emt 0:00:12]} Re7 {[%emt 0:01:28]} 23. Rec1 {[%emt 0:00:48]} g5 {[%emt 0:05:14]} 24. b4 {[%emt 0:02:35]} Rc8 {[%emt 0:07:44]} 25. Nxc6 {[%emt 0:04:10]} bxc6 {[%emt 0:00:05]} 26. Rxc6 {[%emt 0:03:11]} Kg7 {[%emt 0:01:08]} 27. f3 {[%emt 0:04:38]} h5 {[%emt 0:01:38]} 28. a4 {[%emt 0:04:17]} Kf6 {[%emt 0:01:18]} 29. Kf2 {[%emt 0:03:02]} Kf5 {[%emt 0:00:11]} 30. b5 {[%emt 0:01:19]} g4 {[%emt 0:02:41]} 31. Re1 {[%emt 0:00:45]} e5 {[%emt 0:05:54]} 32. fxg4+ {[%emt 0:01:25]} hxg4 {[%emt 0:00:08]} 33. Kg3 {[%emt 0:01:20]} Rg8 {[%emt 0:04:28]} 34. dxe5 {[%emt 0:01:29]} Rgg7 $2 {[%emt 0:08:05]} (34... Rge8 35. e6 Rd8) 35. Rf6+ {[%emt 0:00:56]} Kg5 {[%emt 0:00:10]} 36. Rf4 {[%emt 0:00:55]} Kh5 {[%emt 0:04:57]} 37. Rd4 {[%emt 0:01:30]} Rg5 {[%emt 0:02:20]} 38. Rxd5 {[%emt 0:00:45]} Kg6 {[%emt 0:00:19]} 39. Rc5 {[%emt 0:01:25]} Rd7 {[%emt 0:01:37]} 40. Rc6+ {[%emt 0:03:12]} Kh5 {[%emt 0:32:47]} 41. Ra6 {[%emt 0:32:21]} Rf5 {[%emt 0:00:52]} 42. Re3 {[%emt 0:00:46]} Rd2 {[%emt 0:00:19]} 43. e6 {[%emt 0:00:52]} Rff2 {[%emt 0:06:21]} 44. Re5+ {[%emt 0:01:17]} Kh6 {[%emt 0:00:05]} 45. e7+ {[%emt 0:00:15]} Kh7 {[%emt 0:00:10]} 46. e8=Q {[%emt 0:00:43]} Rxg2+ {[%emt 0:00:41]} 47. Kf4 {[%emt 0:00:19]} Rgf2+ {[%emt 0:01:10]} 48. Ke4 (48. Kg5) 1-0

[Event "9. Korbacher Open 2017"]
[Site "Korbach"]
[Date "2017.10.20"]
[Round "2"]
[White "Van Randtwijk, Mick"]
[Black "Bayer, Martin"]
[Result "1-0"]
[ECO "C77"]
[WhiteElo "2028"]
[BlackElo "1732"]
[Annotator "NA RC"]
[PlyCount "55"]
[EventDate "2017.??.??"]
[EventType "swiss"]
[EventCountry "GER"]
[SourceTitle "playchess.com"]
[Source "ChessBase"]
[SourceQuality "1"]
[TimeControl "40/5400+30:1800+30"]

{[%evp 8,55,15,21,20,21,17,13,18,4,22,8,32767,1,34,-5,4,3,0,0,-2,-13,-1,0,37,29,45,9,101,92,145,133,129,135,232,124,189,32767,32767,32767,32767,322,325,318,623,615,724,767,1063,371]} 1. e4 {[%emt 0:00:00]} e5 {[%emt 0:08:12]} 2. Nf3 {[%emt 0:00:00]} Nc6 {[%emt 0:00:12]} 3. Bb5 {[%emt 0:00:32]} a6 {[%emt 0:00:04]} 4. Ba4 {[%emt 0:00:14]} Nf6 {[%emt 0:00:04]} 5. d3 {[%emt 0:00:12]} b5 {[%emt 0:00:32]} 6. Bb3 {[%emt 0:00:06]} Be7 {[%emt 0:00:04]} 7. O-O {[%emt 0:00:40]} d6 {[%emt 0:00:10]} 8. a3 {[%emt 0:00:19] C84: Closed Ruy Lopez: Unusual White 6th moves} Na5 {[%emt 0:00:20]} (8... O-O 9. Nc3 Bg4 10. Be3 Nd4 11. Bxd4 exd4 12. Nd5 Nxd5 13. Bxd5 Rc8 14. Bc6 Bf6 15. a4 Bd7 16. Bxd7 Qxd7 17. Qd2 Qc6 18. b3 {1-0 (64) Vachier Lagrave,M (2804)-Aronian,L (2799) Tbilisi 2017}) 9. Ba2 {[%emt 0:00:14]} c5 {[%emt 0:00:05]} 10. Nc3 {[%emt 0:01:08]} O-O {[%emt 0:00:38] LiveBook: 37 Games} 11. Nd5 {[%emt 0:01:12]} Nxd5 {[%emt 0:01:21]} 12. Bxd5 {[%emt 0:00:19]} Bb7 {[%emt 0:00:08]} 13. Bxb7 {[%emt 0:03:31]} Nxb7 {[%emt 0:00:06]} 14. Bd2 $146 {[%emt 0:05:13]} ({Predecessor:} 14. c3 f5 15. Re1 Na5 16. exf5 Rxf5 {½-½ (29) Ubed Garcia Cuenca,P (1888)-Sotnikov,T Madrid 2006}) 14... Rc8 {[%emt 0:00:50]} 15. a4 {[%emt 0:01:40]} c4 {[%emt 0:08:37]} 16. axb5 {[%emt 0:02:19]} axb5 {[%emt 0:00:27]} 17. d4 {[%emt 0:02:38]} exd4 {[%emt 0:05:53]} (17... Re8 $11) 18. Nxd4 {[%emt 0:00:34]} Qb6 {[%emt 0:01:24]} ({Black should play} 18... Bf6 19. Nxb5 Qe8) 19. Nf5 {[%emt 0:04:56]} Bf6 {[%emt 0:04:43]} 20. Bc3 {[%emt 0:00:27]} d5 {[%emt 0:03:58]} (20... Qd8 $16 {keeps fighting.} 21. Ra7 Rb8 22. Bxf6 Qxf6) 21. exd5 {[%emt 0:13:06]} (21. Qg4 $18 Rce8 {[#]} 22. e5 $1 {[%mdl 512]} (22. Nxg7 Rxe4 23. Nh5+ Rxg4 $16) (22. exd5 Bxc3 23. bxc3 g6 $16) 22... Rxe5 23. Bxe5 Bxe5 24. Rfd1) 21... Ra8 {[%emt 0:09:16]} (21... b4 $16) 22. Qf3 {[%emt 0:05:28]} Rxa1 {[%emt 0:10:28]} 23. Rxa1 {[%emt 0:00:09]} b4 {[%emt 0:00:38] [#]} 24. Nh6+ $1 {[%emt 0:06:08]} Kh8 {[%emt 0:07:39]} 25. Bxf6 {[%emt 0:00:15]} gxf6 $2 {[%emt 0:03:57] [#]} (25... Qxf6 26. Nxf7+ Rxf7) 26. d6 $1 {[%emt 0:10:14]} Qxd6 {[%emt 0:02:36]} 27. Qxb7 {[%emt 0:00:10]} Qf4 {[%emt 0:00:17]} 28. Qxb4 $18 {[%emt 0:00:51]} (28. Nxf7+ $142 Kg8 29. g3) 1-0

[Event "9. Korbacher Open 2017"]
[Site "Korbach"]
[Date "2017.10.20"]
[Round "2"]
[White "Rubina, Tatiana"]
[Black "Van de Griend, Johan"]
[Result "0-1"]
[ECO "C58"]
[WhiteElo "2022"]
[BlackElo "1797"]
[Annotator "NA RC"]
[PlyCount "66"]
[EventDate "2017.??.??"]
[EventType "swiss"]
[EventCountry "GER"]
[SourceTitle "playchess.com"]
[Source "ChessBase"]
[SourceQuality "1"]
[TimeControl "40/5400+30:1800+30"]

{[%evp 8,66,23,19,32767,32767,32767,32767,10,32767,0,-5,6,0,0,0,12,-10,31,11,38,-3,0,0,0,-153,-8,-233,-125,-117,32767,32767,32767,32767,38,25,0,26,32767,-377,-401,-759,-971,-29985,-29987,-1013,-313,-351,-435,-318,-421,-344,-383,-29994,-29993,-29995,-29996,-29996,-29997,-29998,-29999]} 1. e4 {[%emt 0:00:56]} e5 {[%emt 0:00:14]} 2. Nf3 {[%emt 0:00:27]} Nc6 {[%emt 0:00:07]} 3. Bc4 {[%emt 0:00:12]} Nf6 {[%emt 0:00:10]} 4. Ng5 {[%emt 0:00:43]} d5 {[%emt 0:00:20]} 5. exd5 {[%emt 0:00:05]} Na5 {[%emt 0:00:21]} 6. Bb5+ {[%emt 0:00:10]} c6 {[%emt 0:00:09]} 7. dxc6 {[%emt 0:00:03]} bxc6 {[%emt 0:00:11]} 8. Qf3 {[%emt 0:01:26]} Be7 {[%emt 0:03:38] C58: Two Knights: 4 Ng5 d5 5 exd5 Na5 sidelines} 9. Bxc6+ $146 {[%emt 0:01:08]} (9. Bd3 h6 10. Ne4 Nd5 11. Ng3 g6 12. O-O f5 13. Re1 Bf6 14. Bf1 O-O 15. d4 e4 16. Qd1 {½-½ (44) Pourramezanali,A (2505)-Wen,Y (2617) Bandar e Anzali 2017}) 9... Nxc6 {[%emt 0:00:08] LiveBook: 28 Games} 10. Qxc6+ {[%emt 0:00:03]} Bd7 {[%emt 0:00:05]} 11. Qf3 {[%emt 0:01:05]} O-O {[%emt 0:02:47]} 12. Nc3 {[%emt 0:02:53]} Rc8 {[%emt 0:01:29]} (12... Ng4 $5 {[%cal Re7g5]} 13. h4 Rc8 $11) 13. O-O {[%emt 0:02:32]} Bc6 {[%emt 0:02:11]} (13... Ng4 $5 {[%cal Re7g5]} 14. h3 Bxg5 15. hxg4 Qb6 $14) 14. Qe2 {[%emt 0:01:20]} Nd5 {[%emt 0:07:30]} 15. Nf3 {[%emt 0:02:36]} Nf4 {[%emt 0:08:59]} 16. Qe3 {[%emt 0:11:22]} ({White must play} 16. Qd1 $1 $15) 16... Bd6 {[%emt 0:15:57]} ({Black should try} 16... Re8 $15 17. Rd1 {[#]} (17. Nxe5 Nxg2 18. Qxa7 Nh4 $15) (17. Qxe5 Bd6 $19) 17... Bc5 $1 {[%mdl 512]}) 17. Rd1 $2 {[%emt 0:07:51] [#]} (17. d4 $11 exd4 18. Qxd4) 17... f5 {[%emt 0:04:12]} ({Better is} 17... Qd7 $1 $19 18. Ne1 Qb7) 18. d4 {[%emt 0:04:20]} Nxg2 {[%emt 0:12:27]} 19. Kxg2 {[%emt 0:01:05]} f4 {[%emt 0:00:05]} 20. Qd3 {[%emt 0:01:42]} Qg5+ $1 {[%emt 0:06:42]} 21. Kf1 {[%emt 0:00:22]} Qh5 {[%emt 0:01:08]} 22. d5 {[%emt 0:00:36]} (22. dxe5 Bxf3 23. exd6 Rfe8 $19) 22... Bd7 {[%emt 0:03:01]} 23. Ng1 $2 {[%emt 0:22:25] [#]} (23. Ne4 $11 {and White is okay.} Bf5 24. Rd2) 23... e4 $1 {[%emt 0:10:14]} 24. Qxe4 {[%emt 0:10:35] [#]} (24. Nxe4 $142 Bb5 25. Qxb5 Qxd1+ 26. Kg2 Qg4+ 27. Kf1 Qd1+ 28. Kg2 Qg4+ 29. Kf1) 24... Rxc3 $1 {[%emt 0:00:54]} 25. bxc3 {[%emt 0:03:20]} Qxd1+ {[%emt 0:00:12]} 26. Kg2 {[%emt 0:00:03] [#]} Qg4+ $2 {[%emt 0:02:54]} (26... f3+ $1 {[%mdl 512] mates} 27. Nxf3 Bf5 28. Qh4 Bxc2 29. Bf4 Qxd5 30. c4 Qc6 31. Bxd6 Qxf3+ 32. Kg1 {[#]} Be4 $1 {[%mdl 512]} 33. Qxe4 Qxe4 34. Bxf8 Qg4+ 35. Kf1 Qxc4+ 36. Kg2 Kxf8 37. a4 Qg4+ 38. Kf1 Qf3 39. Kg1 a5 40. h4 Qg4+ 41. Kf1 Qxh4 42. Kg2 Qg4+ 43. Kh2 Qf3 44. Kg1 h5 45. Re1 Qg4+ 46. Kh2 Qxa4 47. Kg1 Qg4+ 48. Kh1 a4 49. Re5 Qc4 50. Re1 a3 51. Kg1 a2 52. Kg2 Qc3 53. Rh1 a1=Q 54. Rxa1 Qxa1 55. Kg3 Qg1+ 56. Kf3 h4 57. Ke2 h3 58. Ke3 h2 59. Kd4 Qxf2+ 60. Kc3 h1=Q 61. Kb4 Qd4+ 62. Ka5 Qa8+ 63. Kb5 Qaa4#) 27. Kh1 {[%emt 0:00:16]} Qh5 {[%emt 0:04:18]} 28. f3 {[%emt 0:07:02]} Re8 {[%emt 0:02:18]} 29. Qd3 {[%emt 0:00:35]} Re1 {[%emt 0:01:52]} 30. c4 {[%emt 0:03:20]} (30. Bb2 $19 Bf5 31. Rxe1 Bxd3 32. cxd3 Qxd5 33. Re8+ Kf7 34. Re4) 30... Qg5 {[%emt 0:02:21]} 31. Qd4 {[%emt 0:00:42]} Bh3 {[%emt 0:00:33]} 32. Qf2 {[%emt 0:00:29]} Rf1 {[%emt 0:00:20]} 33. Bxf4 {[%emt 0:00:55]} Rxf2 {[%emt 0:00:11]} 0-1

[Event "9. Korbacher Open 2017"]
[Site "Korbach"]
[Date "2017.10.20"]
[Round "2"]
[White "Maar, Samuel"]
[Black "Mak, Nico"]
[Result "1-0"]
[ECO "C05"]
[WhiteElo "1998"]
[BlackElo "1799"]
[Annotator "NA RC"]
[PlyCount "49"]
[EventDate "2017.??.??"]
[EventType "swiss"]
[EventCountry "GER"]
[SourceTitle "playchess.com"]
[Source "ChessBase"]
[SourceQuality "1"]
[TimeControl "40/5400+30:1800+30"]

{[%evp 8,49,26,30,29,30,41,29,33,34,53,56,63,41,173,162,227,32767,67,31,49,6,8,-26,177,156,309,277,289,292,308,306,307,239,242,235,241,253,265,277,827,893,830,856]} 1. e4 {[%emt 0:00:00]} e6 {[%emt 0:00:15]} 2. d4 {[%emt 0:00:00]} d5 {[%emt 0:00:08]} 3. Nd2 {[%emt 0:00:00]} Nf6 {[%emt 0:00:15]} 4. e5 {[%emt 0:00:00]} Nfd7 {[%emt 0:00:05]} 5. Bd3 {[%emt 0:00:00]} c5 {[%emt 0:00:18]} 6. c3 {[%emt 0:00:06]} Nc6 {[%emt 0:01:04]} 7. Ne2 {[%emt 0:03:13]} Be7 {[%emt 0:01:42]} 8. O-O {[%emt 0:00:30]} cxd4 {[%emt 0:03:04] LiveBook: 8 Games} 9. cxd4 {[%emt 0:00:08]} Qb6 {[%emt 0:00:04] C06: French Tarrasch: 3...Nf6 4 e5 Nfd7 5 Bd3 main lines} (9... O-O 10. f4 f5 11. a3 Rb8 12. h3 b5 13. Nf3 b4 14. a4 b3 15. Bd2 Nb4 16. Bxb4 Rxb4 17. a5 {½-½ (70) Shevchenko,K (2453)-Bykov,O (2332) Moscow 2017}) 10. Nb3 {[%emt 0:03:33]} f6 $146 {[%emt 0:06:04]} (10... a5 $14) ({Predecessor:} 10... Nb4 11. Bb1 a5 12. a3 Nc6 {0-1 (66) Biancotti,A (1827)-Mercandelli,C (1900) Alassio 2016}) 11. Nf4 {[%emt 0:16:27]} Nd8 {[%emt 0:34:15]} (11... g6 $16) 12. Bd2 {[%emt 0:27:32]} fxe5 {[%emt 0:05:08]} 13. dxe5 {[%emt 0:20:38]} Nxe5 {[%emt 0:03:05]} 14. Qh5+ {[%emt 0:10:08]} Ndf7 {[%emt 0:02:01]} 15. Bxh7 {[%emt 0:02:48]} Bd7 $2 {[%emt 0:14:17]} (15... Nd7 $1 $11 16. Be3 Qd6) 16. Bc3 {[%emt 0:02:31]} Bf6 {[%emt 0:00:19]} (16... g6 $142 17. Nxg6 Nxg6 18. Qxg6 e5 19. Bxe5 Qxg6 20. Bxg6 Rh6) 17. Bxe5 {[%emt 0:01:20]} Bxe5 {[%emt 0:04:00]} 18. Ng6 $1 {[%emt 0:00:04]} O-O-O {[%emt 0:01:18]} 19. Nxh8 {[%emt 0:02:28]} ({Don't do} 19. Nxe5 $6 Nxe5 20. Qxe5 Rxh7 $18) 19... Rxh8 {[%emt 0:00:43]} 20. Rac1+ {[%emt 0:01:46]} Kb8 {[%emt 0:00:43]} 21. Qxf7 {[%emt 0:00:19]} Be8 {[%emt 0:07:00]} 22. Qf3 {[%emt 0:00:49]} Rxh7 {[%emt 0:00:56]} 23. g3 {[%emt 0:00:04]} Bf6 $2 {[%emt 0:02:04]} (23... Rh8 24. Rfe1 Bh5) 24. Qf4+ {[%emt 0:00:24]} e5 {[%emt 0:03:04]} 25. Qf5 $18 {[%emt 0:00:04]} 1-0

[Event "9. Korbacher Open 2017"]
[Site "Korbach"]
[Date "2017.10.20"]
[Round "2"]
[White "Ohst, Holger"]
[Black "Lesny, Florian"]
[Result "1-0"]
[ECO "A37"]
[WhiteElo "1986"]
[BlackElo "1997"]
[Annotator "NA RC"]
[PlyCount "42"]
[EventDate "2017.??.??"]
[EventType "swiss"]
[EventCountry "GER"]
[SourceTitle "playchess.com"]
[Source "ChessBase"]
[SourceQuality "1"]
[TimeControl "40/5400+30:1800+30"]

{[%evp 8,42,4,-9,0,0,0,-8,-5,-20,0,-25,-10,-18,-6,-68,-10,-21,-30,-16,0,-30,0,32767,-57,-77,-49,-39,0,0,32,14,35,33,33,29,30]} 1. c4 {[%emt 0:00:00]} c5 {[%emt 0:00:07]} 2. g3 {[%emt 0:00:37]} g6 {[%emt 0:00:33]} 3. Bg2 {[%emt 0:00:07]} Bg7 {[%emt 0:00:06]} 4. Nc3 {[%emt 0:00:10]} Nc6 {[%emt 0:00:07]} 5. Nf3 {[%emt 0:01:52]} e6 {[%emt 0:00:10]} 6. O-O {[%emt 0:03:14] LiveBook: 1145 Games} Nge7 {[%emt 0:00:14]} 7. d3 {[%emt 0:08:21]} O-O {[%emt 0:02:53]} 8. Bg5 {[%emt 0:04:57]} h6 {[%emt 0:03:24]} 9. Bd2 {[%emt 0:02:32]} b6 {[%emt 0:02:05]} 10. Rb1 {[%emt 0:08:54] A37: Symmetrical English vs ...g6: 4 Bg2 Bg7 5 Nf3} Bb7 {[%emt 0:04:52]} 11. Ne1 {[%emt 0:07:13]} (11. Qc1 $11) 11... d6 {[%emt 0:09:30]} 12. a3 {[%emt 0:02:45]} Qd7 {[%emt 0:06:13]} 13. b4 {[%emt 0:04:45]} Rad8 $146 {[%emt 0:03:48]} ({Predecessor:} 13... f5 14. Nc2 g5 15. Nb5 {1-0 (56) Liu,C (2336)-Andersen,M (2461) Maribor 2012}) 14. Nc2 {[%emt 0:15:58]} Kh7 {[%emt 0:07:02]} 15. bxc5 {[%emt 0:11:53]} dxc5 {[%emt 0:00:54]} 16. Nb5 {[%emt 0:00:53]} Nf5 {[%emt 0:11:36]} 17. Bc3 {[%emt 0:05:55]} Nfd4 {[%emt 0:07:37]} 18. Nbxd4 {[%emt 0:01:21]} Nxd4 {[%emt 0:01:07]} 19. Nxd4 {[%emt 0:01:35]} Bxd4 {[%emt 0:01:06]} 20. Bxd4 {[%emt 0:01:20]} Bxg2 {[%emt 0:02:36]} 21. Kxg2 {[%emt 0:00:50]} Qxd4 $11 {[%emt 0:00:56]} 1-0